bitfinex/quotes_SOLUSD_20251103
["timestamp","ask_amount","ask_price","bid_price","bid_amount"]
[1762148948345,2.21162789,176.98,176.94,5.65163332]
[1762148948552,2.21162789,176.95,176.94,62.5]
[1762148949069,0.7,177.0,176.94,63.17]
[1762148949382,2.21162789,176.97,176.94,63.17]
[1762148950265,2.21162789,176.97,176.95,5.65131393]
[1762148950473,5.63264188,176.97,176.95,5.65131393]
[1762148950654,5.63264188,176.96,176.95,5.65131393]
[1762148952779,5.63264188,176.96,176.95,6.32131393]
[1762148953078,5.63264188,176.97,176.95,68.15131393]
[1762148953464,5.63264188,176.98,176.96,0.67]
[1762148953649,5.63264188,176.98,176.95,82.94959875]
[1762148953849,5.63264188,176.97,176.95,82.94959875]
[1762148954052,4.65900521,177.03,176.95,82.27959875]
[1762148954257,5.63264188,176.99,176.96,0.67]
[1762148954452,5.63264188,177.01,176.96,63.17]
[1762148954672,0.7,177.05,176.97,19.77736338]
[1762148954973,5.63264188,177.02,176.97,20.44736338]
[1762148955156,5.63264188,177.02,176.98,0.67]
[1762148955966,5.63264188,177.04,176.98,6.30264188]
[1762148956164,5.63264188,177.05,176.98,6.30264188]
[1762148956487,4.85900521,177.1,177.02,5.63264188]
[1762148956778,5.63264188,177.09,177.04,19.7695436]
[1762148956945,5.83264188,177.1,177.04,25.40218548]
[1762148957151,5.83264188,177.1,177.05,0.67]
[1762148957372,5.63264188,177.09,177.05,0.67]
[1762148957780,0.9,177.1,177.05,0.67]
[1762148957986,6.53264188,177.1,177.05,0.67]
[1762148958169,5.83264188,177.1,177.05,0.67]
[1762148958358,0.2,177.1,177.06,5.63264188]
[1762148958562,0.2,177.1,177.05,6.30264188]
[1762148958759,0.2,177.1,177.06,5.647803]
[1762148958995,5.83264188,177.1,177.07,0.67]
[1762148960269,5.83264188,177.1,177.08,5.64716512]
[1762148960457,11.77275264,177.1,177.08,5.64716512]
[1762148960669,12.27275264,177.09,177.01,6.31939833]
[1762148960872,7.83347846,177.05,177.02,0.67]
[1762148961150,3.73927418,177.08,177.02,0.67]
[1762148961151,7.83347846,177.06,177.02,0.67]
[1762148962267,7.83347846,177.06,177.03,5.64876009]
[1762148962475,3.73927418,177.08,177.03,5.64876009]
[1762148962791,7.83347846,177.06,177.03,6.31876009]
[1762148962966,4.43927418,177.08,177.03,6.31876009]
[1762148963167,7.83347846,177.06,177.03,6.31876009]
[1762148963366,7.83347846,177.07,177.03,6.31876009]
[1762148963678,7.83347846,177.06,177.03,6.31876009]
[1762148964762,7.83347846,177.06,177.03,68.14876009]
[1762148964962,7.83347846,177.06,177.03,68.81876009]
[1762148965365,7.83347846,177.05,177.03,68.81876009]
[1762148967256,7.83347846,177.05,177.03,68.14876009]
[1762148967457,7.83347846,177.05,177.03,68.85876009]
[1762148968463,7.83347846,177.07,177.04,0.71]
[1762148969554,3.73464772,177.08,177.04,8.54347846]
[1762148969964,3.73464772,177.08,177.06,5.647803]
[1762148970163,3.73464772,177.08,177.06,68.147803]
[1762148970364,3.73464772,177.09,177.06,68.857803]
[1762148970790,11.56812618,177.09,177.06,68.857803]
[1762148971485,3.73464772,177.09,177.06,68.147803]
[1762148971660,0.2,177.1,177.07,8.54347846]
[1762148972077,0.2,177.1,177.08,0.71]
[1762148973789,0.2,177.1,177.08,6.35706982]
[1762148974163,7.83347846,177.09,177.06,68.14774389]
[1762148974366,7.83347846,177.08,177.06,68.14774389]
[1762148974567,7.83347846,177.07,177.06,62.5]
[1762148975070,7.83347846,177.07,177.06,68.147803]
[1762148975275,7.83347846,177.08,177.06,68.147803]
[1762148975674,7.83347846,177.08,177.06,62.5]
[1762148976073,7.83347846,177.08,177.06,68.8477979]
[1762148977588,7.83347846,177.08,177.06,62.5]
[1762148978088,7.83347846,177.08,177.06,68.14773214]
[1762148978388,7.83347846,177.08,177.06,62.5]
[1762148979167,7.83347846,177.08,177.06,68.84770467]
[1762148979368,7.83347846,177.08,177.06,62.5]
[1762148980384,7.83347846,177.08,177.06,68.84775497]
[1762148980576,7.83347846,177.08,177.06,68.14775497]
[1762148980788,11.55919164,177.09,177.06,68.14775497]
[1762148980993,3.72571318,177.09,177.07,0.7]
[1762148981198,0.2,177.1,177.08,7.83347846]
[1762148981504,0.2,177.1,177.09,14.18032469]
[1762148983105,0.2,177.1,177.09,76.68032469]
[1762148983273,0.2,177.1,177.09,86.46915238]
[1762148983707,0.2,177.1,177.09,68.84684623]
[1762148987612,0.2,177.1,177.09,76.68032469]
[1762148988301,7.83347846,177.14,177.11,62.3]
[1762148989000,8.49347846,177.14,177.11,62.3]
[1762148989188,7.83347846,177.12,177.11,62.3]
[1762148989599,8.49347846,177.12,177.11,62.3]
[1762148990107,7.83347846,177.12,177.11,62.3]
[1762148990711,3.72266165,177.14,177.11,62.3]
[1762148990872,7.83347846,177.14,177.11,63.0]
[1762148991073,20.592,177.12,177.11,63.0]
[1762148991297,20.592,177.12,177.11,62.3]
[1762148991506,7.83347846,177.13,177.11,62.3]
[1762148994411,3.4500657,177.13,177.11,62.3]
[1762148996008,20.592,177.12,177.11,62.3]
[1762148996306,20.592,177.12,177.11,63.0]
[1762148996491,3.4500657,177.14,177.11,62.3]
[1762148996678,3.72934546,177.13,177.11,62.3]
[1762148997307,20.592,177.12,177.11,63.0]
[1762148997799,3.4500657,177.14,177.11,62.3]
[1762148998002,20.592,177.15,177.11,62.3]
[1762148998003,7.18251847,177.13,177.11,62.3]
[1762148998301,7.18251847,177.12,177.11,62.3]
[1762148998507,3.73245277,177.12,177.11,62.3]
[1762148998905,7.18251847,177.12,177.11,62.3]
[1762148999914,3.73245277,177.12,177.11,62.3]
[1762149000495,5.51692561,177.19,177.11,72.09627427]
[1762149000707,8.39574117,177.18,177.13,3.4500657]
[1762149000901,3.73881556,177.17,177.12,4.1500657]
[1762149001212,3.73881556,177.16,177.12,4.1500657]
[1762149001515,3.73881556,177.15,177.13,0.7]
[1762149001712,3.73881556,177.14,177.13,63.0]
[1762149001917,28.44088126,177.14,177.13,62.3]
[1762149002125,34.08617047,177.14,177.08,62.3]
[1762149002422,24.0420657,177.09,177.0,0.7]
[1762149002595,3.4500657,177.01,176.98,0.7]
[1762149002928,3.4500657,177.02,176.98,0.7]
[1762149003112,3.73516135,177.03,176.99,3.4500657]
[1762149003423,3.73510031,177.04,176.99,3.4500657]
[1762149003620,3.4500657,177.04,177.0,0.7]
[1762149003801,3.73455282,177.03,177.0,0.7]
[1762149004002,3.4500657,177.04,177.0,0.7]
[1762149004217,3.4500657,177.04,177.0,6.34969599]
[1762149004526,7.83916816,177.04,177.0,6.34969599]
[1762149004709,20.592,177.06,177.0,0.7]
[1762149004908,7.83916816,177.03,176.98,16.13918366]
[1762149005406,3.73359311,177.05,177.0,7.83916816]
[1762149005603,3.73331654,177.04,176.99,8.53916816]
[1762149005809,21.252,177.06,176.99,0.7]
[1762149005810,7.83916816,177.03,176.99,0.7]
[1762149006005,7.83916816,177.03,176.98,5.65035597]
[1762149006227,7.83916816,177.0,176.96,0.66]
[1762149006433,7.83916816,176.99,176.96,0.66]
[1762149006595,7.83916816,176.98,176.95,5.65131393]
[1762149006802,7.83916816,176.99,176.95,6.31131393]
[1762149007023,7.83916816,177.0,176.96,0.66]
[1762149007235,0.71,177.08,177.0,9.78882769]
[1762149007532,7.83916816,177.08,177.02,7.83916816]
[1762149007833,3.73501653,177.08,177.04,7.83916816]
[1762149008134,11.57418469,177.09,177.04,75.78731895]
[1762149008310,3.73501653,177.08,177.05,0.66]
[1762149009211,3.73501653,177.08,177.04,75.78731895]
[1762149009413,7.83916816,177.06,177.04,62.3]
[1762149009632,7.83916816,177.06,177.04,45.4811]
[1762149009811,11.57418469,177.08,177.05,0.66]
[1762149010136,7.83916816,177.1,177.05,6.30798913]
[1762149010330,11.57518933,177.1,177.05,59.62825729]
[1762149010521,11.57518933,177.1,177.06,0.66]
[1762149011324,11.57518933,177.1,177.06,6.30768588]
[1762149011521,3.73602117,177.1,177.06,59.62795404]
[1762149011844,8.54916816,177.1,177.06,45.4811]
[1762149012043,7.83916816,177.07,177.06,45.4811]
[1762149012217,7.83916816,177.08,177.06,45.4811]
[1762149012416,7.83916816,177.1,177.06,46.1411]
[1762149013238,7.83916816,177.09,177.07,0.66]
[1762149014040,7.83916816,177.08,177.06,51.12883137]
[1762149014227,7.83916816,177.08,177.06,45.4811]
[1762149014928,7.83916816,177.08,177.06,46.1411]
[1762149015122,7.83916816,177.08,177.06,51.78887953]
[1762149015328,7.83916816,177.09,177.07,0.66]
[1762149015527,7.83916816,177.09,177.07,6.30735681]
[1762149015724,7.83916816,177.09,177.07,51.78845681]
[1762149016222,7.83916816,177.09,177.07,46.1411]
[1762149016422,7.83916816,177.08,177.07,45.4811]
[1762149016839,7.83916816,177.08,177.07,46.1411]
[1762149017022,7.83916816,177.09,177.07,51.78852089]
[1762149017223,21.302,177.13,177.08,0.66]
[1762149017224,11.57903123,177.12,177.08,0.66]
[1762149017426,11.57903123,177.12,177.09,5.64684623]
[1762149017633,0.71,177.15,177.09,51.12794623]
[1762149017829,3.7398173,177.14,177.09,51.78794623]
[1762149018046,7.83916816,177.11,177.09,51.78794623]
[1762149019514,20.592,177.16,177.1,6.30652693]
[1762149019714,3.73982494,177.15,177.1,59.62679509]
[1762149019937,3.73982494,177.14,177.11,0.66]
[1762149020245,7.83916816,177.15,177.11,46.1411]
[1762149020542,3.74019073,177.14,177.11,46.1411]
[1762149020711,3.74019073,177.14,177.12,0.66]
[1762149021544,3.74019073,177.14,177.12,6.30581198]
[1762149022235,3.74019073,177.14,177.13,0.66]
[1762149022539,5.62037391,177.15,177.13,6.30550981]
[1762149022738,5.62037391,177.16,177.13,6.30550981]
[1762149022944,3.73827719,177.15,177.13,6.30550981]
[1762149023141,3.73827719,177.15,177.14,0.66]
[1762149023438,5.62037391,177.15,177.14,45.4811]
[1762149024040,3.73827719,177.15,177.14,45.4811]
[1762149024216,5.62037391,177.16,177.14,46.1411]
[1762149024521,3.73827719,177.16,177.14,45.4811]
[1762149024723,3.73827719,177.16,177.15,5.64493367]
[1762149024954,3.73827719,177.16,177.15,51.12603367]
[1762149025124,3.73827719,177.18,177.15,51.78603367]
[1762149025322,3.73827719,177.17,177.16,0.67]
[1762149025726,3.73827719,177.18,177.16,0.67]
[1762149026030,3.73827719,177.17,177.16,0.67]
[1762149026234,3.73827719,177.18,177.16,6.31438519]
[1762149026434,3.73827719,177.17,177.16,6.31438519]
[1762149026744,5.94459992,177.18,177.17,0.67]
[1762149027242,3.73827719,177.18,177.17,0.67]
[1762149027444,5.94459992,177.18,177.17,0.67]
[1762149027657,5.94459992,177.18,177.16,5.64438519]
[1762149027836,5.94459992,177.18,177.16,6.31438519]
[1762149028035,3.73827719,177.18,177.17,0.67]
[1762149028236,5.94459992,177.18,177.17,0.67]
[1762149028850,5.94459992,177.18,177.16,5.64438519]
[1762149029050,5.94459992,177.18,177.16,6.31438519]
[1762149029346,3.93827719,177.19,177.17,0.67]
[1762149029522,2.20632273,177.18,177.17,0.67]
[1762149030749,3.93827719,177.19,177.17,6.31424429]
[1762149030946,0.2,177.19,177.17,6.31424429]
[1762149031246,2.40632273,177.19,177.17,51.79534429]
[1762149031847,0.2,177.19,177.18,0.67]
[1762149032054,2.40632273,177.19,177.18,46.1511]
[1762149032251,0.2,177.19,177.18,46.1511]
[1762149032563,2.40632273,177.19,177.18,45.4811]
[1762149033635,0.2,177.19,177.18,45.4811]
[1762149033838,0.2,177.19,177.18,51.79507787]
[1762149034645,3.93827719,177.22,177.2,45.4811]
[1762149034851,0.2,177.22,177.21,11.99515042]
[1762149035150,0.2,177.22,177.2,148.4811]
[1762149035329,2.20632273,177.21,177.2,148.4811]
[1762149035541,2.20632273,177.21,177.18,45.4811]
[1762149035848,0.86,177.22,177.18,46.1511]
[1762149035849,2.20632273,177.19,177.18,46.1511]
[1762149036023,0.2,177.22,177.19,0.71]
[1762149036346,2.20632273,177.21,177.19,0.71]
[1762149036555,0.2,177.22,177.19,0.71]
[1762149036725,2.20632273,177.2,177.19,0.71]
[1762149037255,2.20632273,177.2,177.18,51.12489907]
[1762149037435,2.20632273,177.2,177.18,51.83489907]
[1762149039321,0.2,177.22,177.18,45.4811]
[1762149039518,20.592,177.18,177.12,46.1911]
[1762149039735,0.66,177.19,177.12,45.4811]
[1762149039946,2.20632273,177.21,177.16,9.78882769]
[1762149040140,2.20632273,177.2,177.17,0.71]
[1762149040323,0.66,177.2,177.14,0.71]
[1762149040528,2.20632273,177.19,177.15,0.71]
[1762149040723,2.20632273,177.2,177.15,0.71]
[1762149040933,2.20632273,177.19,177.15,0.71]
[1762149041149,2.20632273,177.18,177.15,0.71]
[1762149041523,2.20632273,177.18,177.16,5.64461503]
[1762149041726,0.2,177.22,177.16,5.64461503]
[1762149041931,2.20632273,177.2,177.17,0.71]
[1762149042432,0.2,177.22,177.17,0.71]
[1762149042636,2.20632273,177.2,177.17,0.71]
[1762149043034,21.452,177.22,177.18,5.64397787]
[1762149043254,2.20632273,177.21,177.17,6.35427559]
[1762149043644,2.20632273,177.21,177.18,0.71]
[1762149043959,2.20632273,177.2,177.17,5.64427559]
[1762149044130,2.20632273,177.2,177.17,6.35427559]
[1762149044458,0.86,177.22,177.17,6.35416968]
[1762149044743,2.20632273,177.19,177.17,6.35416968]
[1762149044935,0.86,177.22,177.17,6.35416968]
[1762149045133,2.20632273,177.19,177.17,6.35416968]
[1762149045441,0.86,177.22,177.17,6.35416968]
[1762149045646,2.20632273,177.19,177.17,6.35416968]
[1762149045849,2.20632273,177.2,177.17,6.35416968]
[1762149046848,0.2,177.22,177.18,0.66]
[1762149047032,2.40632273,177.22,177.18,0.66]
[1762149047666,0.2,177.22,177.18,2.86632273]
[1762149047959,0.2,177.22,177.19,2.20632273]
[1762149048127,0.2,177.22,177.2,0.66]
[1762149048330,2.40632273,177.22,177.2,46.1411]
[1762149048648,2.40632273,177.22,177.2,45.4811]
[1762149048847,2.20632273,177.21,177.2,45.4811]
[1762149049250,0.2,177.22,177.2,45.4811]
[1762149049442,2.20632273,177.21,177.2,45.4811]
[1762149050935,2.86632273,177.21,177.2,45.4811]
[1762149051266,2.20632273,177.21,177.2,45.4811]
[1762149051633,2.40632273,177.22,177.2,45.4811]
[1762149051833,2.20632273,177.21,177.2,45.4811]
[1762149053944,0.2,177.22,177.2,45.4811]
[1762149054155,2.20632273,177.21,177.2,45.4811]
[1762149054761,0.2,177.22,177.2,45.4811]
[1762149054957,0.2,177.22,177.2,51.12444085]
[1762149055278,2.40632273,177.22,177.2,51.12444085]
[1762149055477,2.20632273,177.21,177.2,45.4811]
[1762149055677,2.86632273,177.21,177.2,45.4811]
[1762149055846,0.66,177.21,177.2,45.4811]
[1762149056047,2.20632273,177.21,177.2,45.4811]
[1762149057473,8.79489437,177.21,177.17,9.74935966]
[1762149057771,2.20632273,177.18,177.17,9.74935966]
[1762149058676,2.20632273,177.19,177.17,10.40935966]
[1762149059251,2.20632273,177.18,177.17,9.74935966]
[1762149060063,2.94836718,177.21,177.17,9.74935966]
[1762149060261,2.20632273,177.18,177.17,9.74935966]
[1762149060468,2.20632273,177.18,177.17,10.40935966]
[1762149060973,2.20632273,177.18,177.17,9.74935966]
[1762149061175,22.79832273,177.18,177.17,9.74935966]
[1762149062372,2.20632273,177.19,177.17,10.40935966]
[1762149062956,2.86632273,177.18,177.17,9.74935966]
[1762149063167,2.20632273,177.18,177.17,9.74935966]
[1762149063355,22.79832273,177.18,177.17,9.74935966]
[1762149064170,2.20632273,177.18,177.17,9.74935966]
[1762149064367,22.79832273,177.18,177.17,9.74935966]
[1762149064582,22.79832273,177.18,177.17,55.23045966]
[1762149064973,23.45832273,177.18,177.17,55.23045966]
[1762149069360,29.1023006,177.18,177.08,45.4811]
[1762149069582,2.20632273,177.09,177.07,0.72]
[1762149069785,2.20632273,177.08,177.05,46.2011]
[1762149069962,2.20632273,177.06,177.05,45.4811]
[1762149070282,21.252,177.13,177.06,0.72]
[1762149070474,2.20632273,177.09,177.06,0.72]
[1762149070659,2.20632273,177.08,177.06,0.72]
[1762149071188,2.20632273,177.07,177.06,0.72]
[1762149071393,2.20632273,177.07,177.06,6.367803]
[1762149072391,2.20632273,177.08,177.06,6.367803]
[1762149072566,2.20632273,177.07,177.06,6.367803]
[1762149072887,2.20632273,177.07,177.04,15.4372464]
[1762149073093,2.20632273,177.05,177.04,16.1572464]
[1762149073276,2.20632273,177.06,177.04,15.4372464]
[1762149073788,2.20632273,177.06,177.05,0.72]
[1762149074176,2.20632273,177.06,177.03,5.64871657]
[1762149074493,2.20632273,177.05,177.03,6.36871657]
[1762149074695,0.66,177.08,177.01,9.78882769]
[1762149074696,2.20632273,177.04,177.01,9.78882769]
[1762149074906,2.20632273,177.02,177.01,9.78882769]
[1762149075193,2.20632273,177.04,177.01,60.9193114]
[1762149075503,2.20632273,177.04,177.02,0.72]
[1762149075678,2.20632273,177.04,177.03,5.64876009]
[1762149075886,14.47119517,177.12,177.03,5.64876009]
[1762149075887,2.20632273,177.08,177.04,9.78882769]
[1762149076089,2.20632273,177.11,177.04,158.98992769]
[1762149076290,2.20632273,177.11,177.06,9.78882769]
[1762149076482,2.20632273,177.12,177.06,11.99515042]
[1762149076678,2.20632273,177.12,177.07,0.72]
[1762149077278,3.72252399,177.2,177.11,2.20632273]
[1762149077611,2.20632273,177.19,177.14,5.64525234]
[1762149077891,0.86,177.22,177.14,5.64525234]
[1762149078067,2.20632273,177.19,177.15,0.72]
[1762149078692,2.20632273,177.16,177.13,16.15434129]
[1762149078876,2.20632273,177.17,177.14,0.72]
[1762149080001,2.20632273,177.15,177.14,0.72]
[1762149080290,20.592,177.18,177.14,6.36525234]
[1762149080480,3.44852693,177.17,177.14,6.36525234]
[1762149080676,3.44852693,177.17,177.15,0.72]
[1762149080892,3.44852693,177.16,177.14,5.64525234]
[1762149081071,3.44852693,177.15,177.12,6.36579618]
[1762149081270,3.44852693,177.13,177.11,5.64614446]
[1762149081481,3.44852693,177.12,177.11,6.36614446]
[1762149082375,3.44852693,177.12,177.11,0.72]
[1762149082888,3.44852693,177.13,177.11,6.36620857]
[1762149083397,3.44852693,177.13,177.11,0.72]
[1762149083707,3.72086191,177.17,177.12,0.72]
[1762149083913,3.44852693,177.14,177.12,0.72]
[1762149084103,3.44852693,177.15,177.12,6.36585045]
[1762149084401,7.82871838,177.15,177.12,6.36585045]
[1762149084905,7.82871838,177.18,177.13,0.72]
[1762149085076,7.82871838,177.19,177.13,54.02981838]
[1762149085513,7.82871838,177.19,177.14,0.66]
[1762149086174,7.82871838,177.18,177.15,5.64493367]
[1762149086604,7.82871838,177.18,177.16,0.66]
[1762149086809,21.452,177.22,177.16,0.66]
[1762149086988,7.82871838,177.19,177.16,0.66]
[1762149087502,0.2,177.22,177.16,0.66]
[1762149087685,7.82871838,177.21,177.16,46.1411]
[1762149088075,7.82871838,177.21,177.17,0.66]
[1762149088305,7.82871838,177.21,177.18,5.64397787]
[1762149088685,7.82871838,177.21,177.19,0.66]
[1762149088996,0.2,177.22,177.14,6.30495068]
[1762149088997,8.48871838,177.2,177.14,6.30495068]
[1762149089298,7.82871838,177.17,177.15,0.66]
[1762149089489,7.82871838,177.17,177.15,46.1411]
[1762149089890,7.82871838,177.18,177.16,0.66]
[1762149090095,7.82871838,177.19,177.16,0.66]
[1762149090299,20.792,177.22,177.17,5.64429643]
[1762149090300,7.82871838,177.2,177.17,5.64429643]
[1762149090497,7.82871838,177.21,177.17,5.64429643]
[1762149090799,0.2,177.22,177.17,5.64429643]
[1762149090985,7.82871838,177.19,177.17,6.30429643]
[1762149091214,7.82871838,177.18,177.16,45.4811]
[1762149091378,7.82871838,177.17,177.13,45.4811]
[1762149091707,7.82871838,177.14,177.13,45.4811]
[1762149091927,7.82871838,177.14,177.11,51.78730857]
[1762149092225,7.82871838,177.13,177.12,0.66]
[1762149092403,7.82871838,177.13,177.11,51.12730857]
[1762149092610,7.82871838,177.12,177.11,51.12730857]
[1762149093120,7.82871838,177.13,177.11,51.78730857]
[1762149093422,7.82871838,177.12,177.11,51.78730857]
[1762149094825,7.82871838,177.12,177.11,46.1411]
[1762149095119,3.72421478,177.17,177.11,51.12730857]
[1762149095321,7.82871838,177.13,177.12,0.66]
[1762149096034,4.38421478,177.18,177.12,0.66]
[1762149096211,7.82871838,177.14,177.12,46.1411]
[1762149096531,7.82871838,177.15,177.12,46.1411]
[1762149096692,7.82871838,177.16,177.13,0.67]
[1762149096893,20.592,177.19,177.14,5.64525234]
[1762149097134,7.82871838,177.16,177.14,5.64525234]
[1762149097425,7.82871838,177.15,177.13,45.4811]
[1762149097597,7.82871838,177.14,177.13,45.4811]
[1762149098628,7.82871838,177.14,177.13,51.79666375]
[1762149099436,7.82871838,177.14,177.13,46.1511]
[1762149099938,7.82871838,177.14,177.13,45.4811]
[1762149101845,3.72412464,177.17,177.13,45.4811]
[1762149102141,7.82871838,177.14,177.13,45.4811]
[1762149103713,21.252,177.2,177.13,51.79665469]
[1762149104010,7.82871838,177.16,177.14,0.67]
[1762149104208,7.82871838,177.16,177.14,46.1511]
[1762149104728,7.82871838,177.15,177.14,45.4811]
[1762149106449,3.45005281,177.15,177.14,45.4811]
[1762149109451,28.43080642,177.15,177.14,45.4811]
[1762149111016,27.77080642,177.15,177.14,45.4811]
[1762149111356,24.32075361,177.15,177.14,45.4811]
[1762149111533,24.04205281,177.15,177.14,45.4811]
[1762149112317,24.04205281,177.15,177.14,46.1511]
[1762149113238,3.45005281,177.15,177.14,51.79635234]
[1762149113429,0.66,177.2,177.14,51.79635234]
[1762149113430,3.45005281,177.16,177.14,51.79635234]
[1762149113633,3.45005281,177.16,177.15,0.67]
[1762149114360,7.82791677,177.16,177.15,0.67]
[1762149115134,7.82791677,177.17,177.15,6.31493367]
[1762149116323,7.82791677,177.17,177.15,0.67]
[1762149116661,7.82791677,177.16,177.14,45.4811]
[1762149116863,7.82791677,177.16,177.15,0.67]
[1762149117228,7.82791677,177.16,177.15,46.1511]
[1762149118148,7.82791677,177.17,177.15,46.1511]
[1762149118351,3.73355266,177.19,177.17,5.64429643]
[1762149118544,7.82791677,177.21,177.17,5.64429643]
[1762149118743,7.82791677,177.2,177.18,0.67]
[1762149119140,7.82791677,177.19,177.18,0.67]
[1762149121629,12.22757996,177.19,177.15,45.4811]
[1762149121856,7.82791677,177.16,177.15,45.4811]
[1762149122060,3.73966319,177.16,177.14,46.1511]
[1762149122247,7.82791677,177.19,177.14,73.06736276]
[1762149122456,7.82791677,177.2,177.15,9.78882769]
[1762149122663,7.82791677,177.2,177.15,10.45882769]
[1762149122865,7.82791677,177.2,177.16,0.67]
[1762149123582,7.82791677,177.2,177.17,5.64429643]
[1762149123946,7.82791677,177.19,177.18,0.67]
[1762149124149,7.82791677,177.19,177.18,46.1511]
[1762149124781,3.73985339,177.21,177.18,46.1511]
[1762149124990,11.56777016,177.2,177.18,46.1511]
[1762149125153,7.82791677,177.2,177.18,46.1511]
[1762149125354,7.82791677,177.2,177.18,51.79502373]
[1762149125574,7.82791677,177.2,177.19,0.67]
[1762149125783,11.56663211,177.2,177.19,0.67]
[1762149126076,11.56663211,177.2,177.19,0.69]
[1762149126587,0.2,177.22,177.19,53.99901677]
[1762149126786,0.2,177.22,177.21,5.6430224]
[1762149126950,11.76603346,177.22,177.2,10.47882769]
[1762149127275,8.02791677,177.22,177.2,10.47882769]
[1762149127450,7.82791677,177.21,177.19,45.4811]
[1762149127653,7.82791677,177.2,177.19,46.1711]
[1762149127864,7.82791677,177.2,177.19,45.4811]
[1762149128170,7.82791677,177.2,177.19,46.1711]
[1762149128351,7.82791677,177.2,177.19,45.4811]
[1762149129251,11.5640263,177.2,177.18,45.4811]
[1762149129474,12.22276005,177.19,177.18,45.4811]
[1762149129687,11.56276005,177.19,177.18,45.4811]
[1762149130361,3.73484328,177.19,177.18,45.4811]
[1762149130789,8.02791677,177.22,177.18,61.60390556]
[1762149130990,8.02791677,177.22,177.19,0.69]
[1762149132882,0.2,177.22,177.2,5.64334085]
[1762149133201,0.2,177.22,177.21,0.69]
[1762149133587,8.02791677,177.22,177.21,0.69]
[1762149133984,0.2,177.22,177.21,0.69]
[1762149134904,0.2,177.22,177.21,51.8141224]
[1762149135683,0.2,177.22,177.21,51.1241224]
[1762149135987,3.64549067,177.22,177.21,45.4811]
[1762149136706,0.2,177.22,177.21,46.1711]
[1762149136874,3.64549067,177.22,177.21,51.8141224]
[1762149137586,0.2,177.22,177.21,61.60295009]
[1762149139584,3.64549067,177.22,177.21,51.1241224]
[1762149139791,3.64549067,177.22,177.21,51.8141224]
[1762149140689,0.2,177.22,177.21,51.8141224]
[1762149141512,0.2,177.22,177.21,61.60295009]
[1762149141680,3.7284573,177.27,177.22,9.78882769]
[1762149141879,0.2,177.28,177.24,9.78882769]
[1762149142085,0.2,177.28,177.25,0.69]
[1762149142288,0.2,177.28,177.25,46.1711]
[1762149142693,0.2,177.28,177.26,10.47882769]
[1762149142895,0.2,177.28,177.27,11.04293893]
[1762149143105,0.2,177.3,177.28,9.78882769]
[1762149143300,0.2,177.3,177.29,11.04287529]
[1762149143503,0.2,177.3,177.29,56.52397529]
[1762149143698,0.2,177.3,177.29,64.36835395]
[1762149144019,0.2,177.3,177.29,46.1711]
[1762149144196,0.2,177.3,177.29,51.12157605]
[1762149144400,0.2,177.3,177.29,6.33047605]
[1762149146199,0.2,177.3,177.29,5.64047605]
[1762149146518,2.40390261,177.3,177.27,72.42393864]
[1762149146696,0.2,177.3,177.28,0.71]
[1762149147723,2.40390261,177.3,177.28,0.71]
[1762149147933,2.88390261,177.29,177.23,45.4811]
[1762149148213,2.20390261,177.24,177.2,0.71]
[1762149148416,2.20390261,177.22,177.2,21.302]
[1762149148617,2.20390261,177.21,177.18,2.40390261]
[1762149148916,2.20390261,177.19,177.12,0.71]
[1762149149093,2.20390261,177.16,177.12,0.71]
[1762149149291,0.68,177.2,177.12,0.71]
[1762149149894,0.68,177.2,177.14,5.64525234]
[1762149150504,0.68,177.2,177.1,2.20390261]
[1762149150505,5.62000048,177.15,177.1,0.71]
[1762149150709,5.62000048,177.13,177.11,16.14503626]
[1762149150891,5.62000048,177.13,177.11,36.73703626]
[1762149151088,5.62000048,177.14,177.12,0.71]
[1762149151720,0.68,177.18,177.12,0.71]
[1762149151721,5.62000048,177.15,177.12,0.71]
[1762149152022,5.62000048,177.16,177.13,5.64557104]
[1762149152215,5.62000048,177.17,177.13,15.43439873]
[1762149152399,5.62000048,177.16,177.13,16.14439873]
[1762149152801,5.62000048,177.14,177.11,9.78882769]